Department Family,Entity,Date,Expense Type,Expense Area,Supplier,Trans no,Amount
DCMS,Tate Gallery,9/8/2023,Advertising,Communications - Tate Modern,(CONTRA ONLY) News UK and Ireland Ltd,2186710,"250,000.00"
DCMS,Tate Gallery,9/11/2023,Electricity,Estates (FM) Management,(DIRECT DEBIT ONLY)  EDF Energy Limited,2186730,"238,697.55"
DCMS,Tate Gallery,9/11/2023,Electricity,Estates (FM) Management,(DIRECT DEBIT ONLY)  EDF Energy Limited,2186732,"114,938.50"
DCMS,Tate Gallery,9/11/2023,Electricity,Estates (FM) Management,(DIRECT DEBIT ONLY)  EDF Energy Limited,2186733,"25,897.65"
DCMS,Tate Gallery,9/8/2023,Consultancy,Transforming Tate Liverpool,6a Limited,2186548,"82,608.24"
DCMS,Tate Gallery,9/20/2023,Rent,Estates (FM) Management,Harrison & Jones Ltd,2187039,"35,625.00"
DCMS,Tate Gallery,9/20/2023,Service charges,Estates (FM) Management,Harrison & Jones Ltd,2187039,"42,381.96"
DCMS,Tate Gallery,9/13/2023,Rent,Estates (FM) Management,Harving Limited,2186761,"30,724.19"
DCMS,Tate Gallery,9/13/2023,Rent,Estates (FM) Management,Harving Limited,2186762,"160,074.48"
DCMS,Tate Gallery,9/7/2023,Site security - Contracts,St Ives Site Costs,Kestrel Guards Limited,2186633,"27,389.76"
DCMS,Tate Gallery,9/25/2023,Agency staff,Visitor Experience & Operations,Securitas Security Services UK Limited,2187000,"132,088.49"
DCMS,Tate Gallery,9/25/2023,Agency staff,Visitor Experience & Operations,Securitas Security Services UK Limited,2187001,"42,510.29"
DCMS,Tate Gallery,9/13/2023,Minor new works,Estates (FM) Management,SPIE LTD,2186830,"8,103.39"
DCMS,Tate Gallery,9/13/2023,Display related works,Estates (FM) Management,SPIE LTD,2186830,"1,269.97"
DCMS,Tate Gallery,9/13/2023,Repairs,Estates (FM) Management,SPIE LTD,2186830,"33,274.24"
DCMS,Tate Gallery,9/13/2023,Consumables,Estates (FM) Management,SPIE LTD,2186830,979.53
DCMS,Tate Gallery,9/18/2023,Facilities Management contract,Estates (FM) Management,SPIE LTD,2186974,"106,089.94"
DCMS,Tate Gallery,9/18/2023,Facilities Management contract,Estates (FM) Management,SPIE LTD,2186974,"149,715.10"
DCMS,Tate Gallery,9/18/2023,Facilities Management contract,Estates (FM) Management,SPIE LTD,2186974,"13,683.40"
DCMS,Tate Gallery,9/18/2023,Facilities Management contract,Estates (FM) Management,SPIE LTD,2186974,"24,738.12"
DCMS,Tate Gallery,9/18/2023,Facilities Management contract,Estates (FM) Management,SPIE LTD,2186974,"4,735.75"
DCMS,Tate Gallery,9/18/2023,Facilities Management contract,Estates (FM) Management,SPIE LTD,2186974,"5,946.86"
DCMS,Tate Gallery,9/21/2023,Consumables,Estates (FM) Management,SPIE LTD,2187156,"4,229.73"
DCMS,Tate Gallery,9/21/2023,Repairs,Estates (FM) Management,SPIE LTD,2187156,"26,451.65"
DCMS,Tate Gallery,9/21/2023,Display related works,Estates (FM) Management,SPIE LTD,2187156,"1,293.63"
DCMS,Tate Gallery,9/21/2023,Minor new works,Estates (FM) Management,SPIE LTD,2187156,"8,775.64"
DCMS,Tate Gallery,9/29/2023,Minor new works,Capital Projects,SPIE LTD,2187307,"96,708.73"
DCMS,Tate Gallery,9/29/2023,Minor new works,Capital Projects,SPIE LTD,2187308,"31,793.86"
DCMS,Tate Gallery,9/29/2023,Minor new works,Capital Projects,SPIE LTD,2187345,"28,662.00"
DCMS,Tate Gallery,9/11/2023,Special projects and events,Exhibitions & Displays - Tate Modern,Tate Eats (FKA Tate Catering),2186625,"61,208.57"
DCMS,Tate Gallery,9/11/2023,Tate magazine,Members Communications,Tate Enterprises Ltd T/A Tate Business,2186683,"209,625.00"
DCMS,Tate Gallery,9/8/2023,Cleaning - Contracts,Estates (FM) Management,Total Support Services Limited,2186519,"69,707.60"
DCMS,Tate Gallery,9/8/2023,Cleaning - Contracts,Estates (FM) Management,Total Support Services Limited,2186521,"110,881.83"
DCMS,Tate Gallery,10/2/2023,Cleaning - Contracts,Estates (FM) Management,Total Support Services Limited,2187382,"69,707.60"
DCMS,Tate Gallery,10/2/2023,Cleaning - Contracts,Estates (FM) Management,Total Support Services Limited,2187383,"110,881.83"
DCMS,Tate Gallery,9/18/2023,Minor new works,Capital Projects,West One UK Ltd,2186921,"184,642.62"
DCMS,Tate Gallery,9/18/2023,Minor new works,Capital Projects,West One UK Ltd,2187010,"174,781.00"
DCMS,Tate Gallery,9/11/2023,Site security - Contracts,"Sites, Security and Services",Wilson James Ltd,2186523,"40,596.16"
DCMS,Tate Gallery,9/11/2023,Site security - Contracts,"Sites, Security and Services",Wilson James Ltd,2186524,"170,990.87"
DCMS,Tate Gallery,9/11/2023,Site security - Contracts,"Sites, Security and Services",Wilson James Ltd,2186525,"300,278.88"
DCMS,Tate Gallery,9/11/2023,Site security - Contracts,"Sites, Security and Services",Wilson James Ltd,2186526,"31,316.18"
DCMS,Tate Gallery,10/4/2023,Site security - Contracts,"Sites, Security and Services",Wilson James Ltd,2187495,"300,278.88"
DCMS,Tate Gallery,10/4/2023,Site security - Contracts,"Sites, Security and Services",Wilson James Ltd,2187496,"40,596.16"
DCMS,Tate Gallery,10/4/2023,Site security - Contracts,"Sites, Security and Services",Wilson James Ltd,2187497,"170,990.87"
DCMS,Tate Gallery,10/4/2023,Site security - Contracts,"Sites, Security and Services",Wilson James Ltd,2187498,"31,316.18"
